Workbook

Sheet Übersicht (hidden)
B3: ERGO - Akademie Campus Belegung - Übersicht
B5: Empfehulung Raumpreise
B6: Raumkategorie | C6: Maximale Auslastung (in Personen) | D6: Raumkosten Ganztags | E6: Getränkepauschale Ganztags | F6: Summe Ganztags (bei maximaler Auslastung) | G6: Raumkosten Halbtags | H6: Getränkepauschale Halbtags | I6: Summe Halbtags (bei maximaler Auslastung)
B7: Kleiner Raum (30 qm) | C7: 10 | D7: ='Input Raummiete'!K34 -> 200 | E7: ='Input Conferencing Services'!F11 -> 15.9 | F7: =D7+C7*E7 -> 359 | G7: 250 | H7: ='Input Conferencing Services'!$F$12 -> 15.9 | I7: =G7+C7*H7 -> 409
B8: Mittelgroßer Raum (60qm) | C8: 20 | D8: ='Input Raummiete'!K35 -> 300 | E8: ='Input Conferencing Services'!F11 -> 15.9 | F8: =D8+C8*E8 -> 618 | G8: 350 | H8: ='Input Conferencing Services'!$F$12 -> 15.9 | I8: =G8+C8*H8 -> 668
B9: Großer Raum (100 qm) | C9: 60 | D9: ='Input Raummiete'!K36 -> 750 | E9: ='Input Conferencing Services'!F11 -> 15.9 | F9: 1704 | G9: 800 | H9: ='Input Conferencing Services'!$F$12 -> 15.9 | I9: =G9+C9*H9 -> 1754
B10: Content Raum | D10: ='Input Raummiete'!K37 -> 500 | E10: ='Input Conferencing Services'!F11 -> 15.9 | G10: ='Input Raummiete'!L37 -> 500 | H10: ='Input Conferencing Services'!$F$12 -> 15.9
B11: Info: Räume immer inklusive Getränkepauschale (Wassser, Kaffee, etc.)
B12: Getränkepauschale hängt final von der Teilnehmeranzahl ab
B14: Raumübersicht | F14: Zubuchbare Module
B15: Raumname | C15: Raumgröße (in qm) | D15: Klassifikation | F15: Leistung | H15: Preis
B16: ='Input Raummiete'!B17 -> Athen (Olympia) | C16: ='Input Raummiete'!C17 -> 33.59 | D16: Klein | F16: Frühstück | H16: ='Input Conferencing Services'!F7 -> 15.8
B17: ='Input Raummiete'!B18 -> London (Olympia) | C17: ='Input Raummiete'!C18 -> 32.96 | D17: Klein | F17: Mittagessen | H17: ='Input Conferencing Services'!F13 -> 24.3
B18: ='Input Raummiete'!B19 -> Paris (Olympia) | C18: ='Input Raummiete'!C19 -> 36.42 | D18: Klein | F18: Snacks (Kuchen) | H18: ='Input Conferencing Services'!F14 -> 4.5
B19: ='Input Raummiete'!B20 -> Olympia | C19: ='Input Raummiete'!C20 -> 102.97 | D19: Groß | F19: Geschirrservice | H19: ='Input Conferencing Services'!F16 -> 5.9
B20: ='Input Raummiete'!B21 -> Maracana | C20: ='Input Raummiete'!C21 -> 63.96 | D20: Groß | F20: Übernachtung (inkl. Frühstück im Hotel) | H20: ='Input Conferencing Services'!F21 -> 105
B21: ='Input Raummiete'!B22 -> Hawaii | C21: ='Input Raummiete'!C22 -> 33.25 | D21: Klein | F21: Übernachtung (inkl. Frühstück und Abendessen im Hotel) | H21: ='Input Conferencing Services'!F19+'Input Conferencing Services'!F21 -> 150
B22: ='Input Raummiete'!B23 -> Wimbledon | C22: ='Input Raummiete'!C23 -> 32.37 | D22: Klein | F22: Flipchart | H22: ='Input Conferencing Services'!F22 -> 10
B23: ='Input Raummiete'!B24 -> Los Angeles | C23: ='Input Raummiete'!C24 -> 32.92 | D23: Klein | F23: Kleines Frühstück (Belegte Brötchen) | H23: ='Input Conferencing Services'!F23 -> 5.9
B24: ='Input Raummiete'!B25 -> Kalifornien | C24: ='Input Raummiete'!C25 -> 32.96 | D24: Klein
G26: Hinweise:
B27: Zusatzangebote | G27: Evt. in den ersten 100 Tagen mit Einführungspreisen arbeiten!?
B28: On Campus
B29: Aktivität | C29: Kategorie | D29: Preis | E29: Ungefährer Zeitrahmen
B30: ='Input Zusatzangebote'!B8 -> Abendveranstaltung | C30: ='Input Zusatzangebote'!C8 -> Networking & Austausch | D30: ='Input Zusatzangebote'!D8 -> Abhängig von Organisation | E30: ='Input Zusatzangebote'!E8 -> 2-3 Stunden
B31: ='Input Zusatzangebote'!B9 -> Meet your CEO/Boss | C31: ='Input Zusatzangebote'!C9 -> Networking & Austausch | D31: ='Input Zusatzangebote'!D9 -> Abhängig von Organisation | E31: ='Input Zusatzangebote'!E9 -> 1 Stunde
B32: ='Input Zusatzangebote'!B10 -> Coffee & Connect Session | C32: ='Input Zusatzangebote'!C10 -> Networking & Austausch | D32: ='Input Zusatzangebote'!D10 -> Kostenlos | E32: ='Input Zusatzangebote'!E10 -> 30 Minuten
B33: ='Input Zusatzangebote'!B11 -> Brettspielabend | C33: ='Input Zusatzangebote'!C11 -> Networking & Austausch | D33: ='Input Zusatzangebote'!D11 -> Kostenlos oder ab 5 Euro | E33: ='Input Zusatzangebote'!E11 -> 2 Stunden
B34: ='Input Zusatzangebote'!B12 -> Show-Cooking | C34: ='Input Zusatzangebote'!C12 -> Kreatives | D34: ='Input Zusatzangebote'!D12 -> Ab 25 Euro pro Person | E34: ='Input Zusatzangebote'!E12 -> 1-2 Stunden
B35: ='Input Zusatzangebote'!B13 -> Kreativ-Workshop (z. B. Malen, Basteln) | C35: ='Input Zusatzangebote'!C13 -> Kreatives | D35: ='Input Zusatzangebote'!D13 -> Ab 15 Euro pro Person | E35: ='Input Zusatzangebote'!E13 -> 1,5-2 Stunden
B36: ='Input Zusatzangebote'!B14 -> Teamchallenges (z.B. zum Thema Nachhaltigkeit) | C36: ='Input Zusatzangebote'!C14 -> Kreatives | D36: ='Input Zusatzangebote'!D14 -> Kostenlos | E36: ='Input Zusatzangebote'!E14 -> Variabel
B37: ='Input Zusatzangebote'!B15 -> Teambuilding-Quiz | C37: ='Input Zusatzangebote'!C15 -> Wellbeing & Teambuilding | D37: ='Input Zusatzangebote'!D15 -> Kostenlos | E37: ='Input Zusatzangebote'!E15 -> 1 Stunde
B38: ='Input Zusatzangebote'!B16 -> Sportliche Mini-Challenges (z. B. Team-Staffel) | C38: ='Input Zusatzangebote'!C16 -> Wellbeing & Teambuilding | D38: ='Input Zusatzangebote'!D16 -> Kostenlos oder ab 10 Euro | E38: ='Input Zusatzangebote'!E16 -> 1-1,5 Stunden
B39: ='Input Zusatzangebote'!B17 -> Yoga-Session | C39: ='Input Zusatzangebote'!C17 -> Wellbeing & Teambuilding | D39: ='Input Zusatzangebote'!D17 -> Ab 10 Euro pro Person | E39: ='Input Zusatzangebote'!E17 -> 45 Minuten
B40: Off Campus
B41: Aktivität | C41: Kategorie | D41: Preis | E41: Ungefährer Zeitrahmen
B42: ='Input Zusatzangebote'!B23 -> Kulinarische Stadtführung | C42: ='Input Zusatzangebote'!C23 -> Kulturelle und Stadtführungen | D42: ='Input Zusatzangebote'!D23 -> ab 44 Euro pro Person | E42: ='Input Zusatzangebote'!E23 -> 2,5 Stunden
B43: ='Input Zusatzangebote'!B24 -> Segway-Tour Stadtführung | C43: ='Input Zusatzangebote'!C24 -> Kulturelle und Stadtführungen | D43: ='Input Zusatzangebote'!D24 -> ab 70 Euro pro Person | E43: ='Input Zusatzangebote'!E24 -> 2 Stunden
B44: ='Input Zusatzangebote'!B25 -> E-Scooter Stadtführung | C44: ='Input Zusatzangebote'!C25 -> Kulturelle und Stadtführungen | D44: ='Input Zusatzangebote'!D25 -> ab 59 Euro pro Person | E44: ='Input Zusatzangebote'!E25 -> 2 Stunden
B45: ='Input Zusatzangebote'!B26 -> Geführte Tour mit einem Nachtwächter Düsseldorf | C45: ='Input Zusatzangebote'!C26 -> Kulturelle und Stadtführungen | D45: ='Input Zusatzangebote'!D26 -> ab 20 Euro pro Person | E45: ='Input Zusatzangebote'!E26 -> 1,5 Stunden
B46: ='Input Zusatzangebote'!B27 -> Walking Tour in "Little Tokyo" | C46: ='Input Zusatzangebote'!C27 -> Kulturelle und Stadtführungen | D46: ='Input Zusatzangebote'!D27 -> ab 9 Euro | E46: ='Input Zusatzangebote'!E27 -> 1,5 Stunden
B47: ='Input Zusatzangebote'!B28 -> Medienhafen Tour | C47: ='Input Zusatzangebote'!C28 -> Kulturelle und Stadtführungen | D47: ='Input Zusatzangebote'!D28 -> ab 20 Euro pro Person | E47: ='Input Zusatzangebote'!E28 -> 2 Stunden
B48: ='Input Zusatzangebote'!B29 -> Bootstour am Rhein | C48: ='Input Zusatzangebote'!C29 -> Erlebnis- und Freizeitaktivitäten | D48: ='Input Zusatzangebote'!D29 -> ab 25 Euro pro Person | E48: ='Input Zusatzangebote'!E29 -> 2 Stunden
B49: ='Input Zusatzangebote'!B30 -> Brauerei-Tour mit Altbierverkostung | C49: ='Input Zusatzangebote'!C30 -> Erlebnis- und Freizeitaktivitäten | D49: ='Input Zusatzangebote'!D30 -> ab 27,5 Euro pro Person | E49: ='Input Zusatzangebote'!E30 -> 2 Stunden
B50: ='Input Zusatzangebote'!B31 -> PubCrawl durch die Altstadt | C50: ='Input Zusatzangebote'!C31 -> Erlebnis- und Freizeitaktivitäten | D50: ='Input Zusatzangebote'!D31 -> ab 22 Euro pro Person | E50: ='Input Zusatzangebote'!E31 -> 4 Stunden
B51: ='Input Zusatzangebote'!B32 -> Fahrradverleih | C51: ='Input Zusatzangebote'!C32 -> Interaktive und aktive Touren | D51: ='Input Zusatzangebote'!D32 -> Preis variabel | E51: ='Input Zusatzangebote'!E32 -> Zeitrahmen variabel
B52: ='Input Zusatzangebote'!B33 -> Entdecke Düsseldorf per Schnitzeljagd | C52: ='Input Zusatzangebote'!C33 -> Interaktive und aktive Touren | D52: ='Input Zusatzangebote'!D33 -> ab 39,90 Euro pro Person | E52: ='Input Zusatzangebote'!E33 -> 3,5 Stunden

Sheet Buchungstool
B3: ERGO - Akademie Campus - Buchungstool | E3: Auftraggeber: | I3: Ansprechpartner: | O3: Kostenstelle:
E4: RD/Einheit: | K4: Telefon:
B5: Veranstaltungsart: | E5: Buchende Einheit:
B7: Wunschtermine Ganztags von 09:00 - 18:00 Uhr | C7: Uhrzeit von/bis | D7: Titel der Veranstaltung | E7: Anzahl Personen (Mindestens 10) (Ausnahme Content Raum) | F7: ='Input Buchungstool '!B7 -> Tagungsraum 30 qm (Max. 12 Personen) | G7: ='Input Buchungstool '!B8 -> Tagungsraum 60 qm (Max. 30 Personen) | H7: ='Input Buchungstool '!B9 -> Tagungsraum 100 qm (Max. 50 Personen) | I7: ='Input Buchungstool '!B10 -> Zusätzlicher Gruppenarbeits- raum (30 qm für 12 Personen) | J7: ='Input Buchungstool '!B12 -> Content-Raum (incl. Nutzung Technik) Preis pro Stunde (Max. 10 Personen) | K7: ='Input Buchungstool '!B11 -> Content-Raum (incl. Nutzung Technik) Preis pro Tag (Max. 10 Personen) | L7: ='Input Buchungstool '!B13 -> Getränkepauschale Heißgetränke & Softgetränke | M7: ='Input Buchungstool '!B14 -> Großes Frühstück (Incl. Anlieferung pauschal 50,-- ) | N7: ='Input Buchungstool '!B15 -> Mittagessen (Incl. Anlieferung, Auf- u. Abbau pauschal 100,--) | O7: ='Input Buchungstool '!B16 -> Snacks (Kuchen) Ab 14:30 Uhr (Nur in Kombination mit Mittagessen) | P7: ='Input Buchungstool '!B17 -> Kleines Frühstück (Belegte Brötchen) (Plus Anlieferung pauschal 50,--) | Q7: ='Input Buchungstool '!B19 -> Übernachtung mit Frühstück im b´mine-Hotel (Bitte über MICE selbst buchen) | R7: ='Input Buchungstool '!B20 -> Übernachtung mit Frühstück & Abendessen im b´mine-Hotel (Bitte über MICE selbst buchen) | S7: ='Input Buchungstool '!B21 -> Flipchart | T7: ='Input Buchungstool '!B22 -> Team-Events Infos auf Campus Homepage (Kostenfrei zur Raumbuchung) | U7: SUMME
B8: Preise | F8: ='Input Buchungstool '!C7 -> 250 | G8: ='Input Buchungstool '!C8 -> 350 | H8: ='Input Buchungstool '!C9 -> 800 | I8: ='Input Buchungstool '!C10 -> 250 | J8: ='Input Buchungstool '!C12 -> 100 | K8: ='Input Buchungstool '!C11 -> 500 | L8: ='Input Buchungstool '!C13 -> 15.9 | M8: ='Input Buchungstool '!D14 -> 15.8 | N8: ='Input Buchungstool '!D15 -> 24.3 | O8: ='Input Buchungstool '!D16 -> 4.5 | P8: ='Input Buchungstool '!D17 -> 5.9 | Q8: ='Input Buchungstool '!D19 -> 105 | R8: ='Input Buchungstool '!D20 -> 150 | S8: ='Input Buchungstool '!D21 -> 10 | T8: ='Input Buchungstool '!D22 -> Kostenfrei
B9: Datum eintragen | L9: =IF(OR(F9="x", G9="x", H9="x", K9="x",J9=1,J9=2,J9=3,J9=4,J9=5), "x", "") ->  | U9: =IF(F9="x",$F$8,0) + IF(G9="x",$G$8,0) + IF(H9="x",$H$8,0) + IF(I9="x",$I$8,0) + IF(OR(J9=1,J9=2,J9=3,J9=4,J9=5),J9*$J$8,0) + IF(K9="x",$K$8,0) + IF(L9="x",$L$8*E9,0) + IF(M9="x",$M$8*E9+'Input Conferencing Services'!$C$18,0) + IF(N9="x",$N$8*E9+'Input Conferencing Services'!$C$17,0) + IF(O9="x",$O$8*E9,0) + IF(P9="x",$P$8*E9+50,0)+ IF(Q9="x",$Q$8* E9, 0) + IF(R9="x",$R$8* E9, 0) + IF(S9="x",$S$8, 0) -> 0
B10: Datum eintragen | L10: =IF(OR(F10="x", G10="x", H10="x", K10="x",J10=1,J10=2,J10=3,J10=4,J10=5), "x", "") ->  | U10: =IF(F10="x",$F$8,0) + IF(G10="x",$G$8,0) + IF(H10="x",$H$8,0) + IF(I10="x",$I$8,0) + IF(OR(J10=1,J10=2,J10=3,J10=4,J10=5),J10*$J$8,0) + IF(K10="x",$K$8,0) + IF(L10="x",$L$8*E10,0) + IF(M10="x",$M$8*E10+'Input Conferencing Services'!$C$18,0) + IF(N10="x",$N$8*E10+'Input Conferencing Services'!$C$17,0) + IF(O10="x",$O$8*E10,0) + IF(P10="x",$P$8*E10+50,0)+ IF(Q10="x",$Q$8* E10, 0) + IF(R10="x",$R$8* E10, 0) + IF(S10="x",$S$8, 0) -> 0
B11: Datum eintragen | U11: =IF(F11="x",$F$8,0) + IF(G11="x",$G$8,0) + IF(H11="x",$H$8,0) + IF(I11="x",$I$8,0) + IF(OR(J11=1,J11=2,J11=3,J11=4,J11=5),J11*$J$8,0) + IF(K11="x",$K$8,0) + IF(L11="x",$L$8*E11,0) + IF(M11="x",$M$8*E11+'Input Conferencing Services'!$C$18,0) + IF(N11="x",$N$8*E11+'Input Conferencing Services'!$C$17,0) + IF(O11="x",$O$8*E11,0) + IF(P11="x",$P$8*E11+50,0)+ IF(Q11="x",$Q$8* E11, 0) + IF(R11="x",$R$8* E11, 0) + IF(S11="x",$S$8, 0) -> 0
B12: Datum eintragen | U12: =IF(F12="x",$F$8,0) + IF(G12="x",$G$8,0) + IF(H12="x",$H$8,0) + IF(I12="x",$I$8,0) + IF(OR(J12=1,J12=2,J12=3,J12=4,J12=5),J12*$J$8,0) + IF(K12="x",$K$8,0) + IF(L12="x",$L$8*E12,0) + IF(M12="x",$M$8*E12+'Input Conferencing Services'!$C$18,0) + IF(N12="x",$N$8*E12+'Input Conferencing Services'!$C$17,0) + IF(O12="x",$O$8*E12,0) + IF(P12="x",$P$8*E12+50,0)+ IF(Q12="x",$Q$8* E12, 0) + IF(R12="x",$R$8* E12, 0) + IF(S12="x",$S$8, 0) -> 0
B13: Datum eintragen | U13: =IF(F13="x",$F$8,0) + IF(G13="x",$G$8,0) + IF(H13="x",$H$8,0) + IF(I13="x",$I$8,0) + IF(OR(J13=1,J13=2,J13=3,J13=4,J13=5),J13*$J$8,0) + IF(K13="x",$K$8,0) + IF(L13="x",$L$8*E13,0) + IF(M13="x",$M$8*E13+'Input Conferencing Services'!$C$18,0) + IF(N13="x",$N$8*E13+'Input Conferencing Services'!$C$17,0) + IF(O13="x",$O$8*E13,0) + IF(P13="x",$P$8*E13+50,0)+ IF(Q13="x",$Q$8* E13, 0) + IF(R13="x",$R$8* E13, 0) + IF(S13="x",$S$8, 0) -> 0
B14: Datum eintragen | U14: =IF(F14="x",$F$8,0) + IF(G14="x",$G$8,0) + IF(H14="x",$H$8,0) + IF(I14="x",$I$8,0) + IF(OR(J14=1,J14=2,J14=3,J14=4,J14=5),J14*$J$8,0) + IF(K14="x",$K$8,0) + IF(L14="x",$L$8*E14,0) + IF(M14="x",$M$8*E14+'Input Conferencing Services'!$C$18,0) + IF(N14="x",$N$8*E14+'Input Conferencing Services'!$C$17,0) + IF(O14="x",$O$8*E14,0) + IF(P14="x",$P$8*E14+50,0)+ IF(Q14="x",$Q$8* E14, 0) + IF(R14="x",$R$8* E14, 0) + IF(S14="x",$S$8, 0) -> 0
B15: Datum eintragen | U15: =IF(F15="x",$F$8,0) + IF(G15="x",$G$8,0) + IF(H15="x",$H$8,0) + IF(I15="x",$I$8,0) + IF(OR(J15=1,J15=2,J15=3,J15=4,J15=5),J15*$J$8,0) + IF(K15="x",$K$8,0) + IF(L15="x",$L$8*E15,0) + IF(M15="x",$M$8*E15+'Input Conferencing Services'!$C$18,0) + IF(N15="x",$N$8*E15+'Input Conferencing Services'!$C$17,0) + IF(O15="x",$O$8*E15,0) + IF(P15="x",$P$8*E15+50,0)+ IF(Q15="x",$Q$8* E15, 0) + IF(R15="x",$R$8* E15, 0) + IF(S15="x",$S$8, 0) -> 0
B16: Datum eintragen | U16: =IF(F16="x",$F$8,0) + IF(G16="x",$G$8,0) + IF(H16="x",$H$8,0) + IF(I16="x",$I$8,0) + IF(OR(J16=1,J16=2,J16=3,J16=4,J16=5),J16*$J$8,0) + IF(K16="x",$K$8,0) + IF(L16="x",$L$8*E16,0) + IF(M16="x",$M$8*E16+'Input Conferencing Services'!$C$18,0) + IF(N16="x",$N$8*E16+'Input Conferencing Services'!$C$17,0) + IF(O16="x",$O$8*E16,0) + IF(P16="x",$P$8*E16+50,0)+ IF(Q16="x",$Q$8* E16, 0) + IF(R16="x",$R$8* E16, 0) + IF(S16="x",$S$8, 0) -> 0
B17: Datum eintragen | U17: =IF(F17="x",$F$8,0) + IF(G17="x",$G$8,0) + IF(H17="x",$H$8,0) + IF(I17="x",$I$8,0) + IF(OR(J17=1,J17=2,J17=3,J17=4,J17=5),J17*$J$8,0) + IF(K17="x",$K$8,0) + IF(L17="x",$L$8*E17,0) + IF(M17="x",$M$8*E17+'Input Conferencing Services'!$C$18,0) + IF(N17="x",$N$8*E17+'Input Conferencing Services'!$C$17,0) + IF(O17="x",$O$8*E17,0) + IF(P17="x",$P$8*E17+50,0)+ IF(Q17="x",$Q$8* E17, 0) + IF(R17="x",$R$8* E17, 0) + IF(S17="x",$S$8, 0) -> 0
B18: Datum eintragen | U18: =IF(F18="x",$F$8,0) + IF(G18="x",$G$8,0) + IF(H18="x",$H$8,0) + IF(I18="x",$I$8,0) + IF(OR(J18=1,J18=2,J18=3,J18=4,J18=5),J18*$J$8,0) + IF(K18="x",$K$8,0) + IF(L18="x",$L$8*E18,0) + IF(M18="x",$M$8*E18+'Input Conferencing Services'!$C$18,0) + IF(N18="x",$N$8*E18+'Input Conferencing Services'!$C$17,0) + IF(O18="x",$O$8*E18,0) + IF(P18="x",$P$8*E18+50,0)+ IF(Q18="x",$Q$8* E18, 0) + IF(R18="x",$R$8* E18, 0) + IF(S18="x",$S$8, 0) -> 0
B19: GESAMTSUMME | U19: =SUM(U9:U18) -> 0
B20: ="Bei Frühstück, Mittagessen, oder Kuchen fällt pro Person einmalig eine Geschirrpauschale von " & TEXT('Input Conferencing Services'!F16,"0,00 €") & " an. Diese wird automatisch mit im Endpreis berücksichtigt. Die Getränkepauschale ist immer bei Raumbuchung enthalten. " -> Bei Frühstück, Mittagessen, oder Kuchen fällt pro Person einmalig eine Geschirrpauschale von 5,90 € an. Diese wird automatisch mit im Endpreis berücksichtigt. Die Getränkepauschale ist immer bei Raumbuchung enthalten.
B22: Stornobedingungen:
B24: Bis zu 28 Tagen, 100 % kostenfrei - bis zu 21 Tagen, 70 % kostenfrei - bis zu 14 Tagen, 40 % kostenfrei - bis zu 7 Tagen, 20 % kostenfrei - bis Veranstaltungsbeginn, 10 % kostenfrei

Sheet Input Buchungstool (hidden)
B3: ERGO - Akademie Campus Belegung - Input Buchungstool
B5: Leistungen | C5: Preise | F5: Drop-Down | G5: Drop-Down VA Art | H5: Drop-Down Bucher | I5: Drop-Down Stunden Contentraum | J5: Drop-Down Team-Events | K5: 2
C6: Halbtags | D6: Ganztags | F6: Ganztags | G6: Seminar | H6: ERGO AD | I6: 1 | J6: Escape Game "Zeitreise Mission" (90 min)
B7: Tagungsraum 30 qm (Max. 12 Personen) | C7: =Übersicht!G7 -> 250 | D7: =Übersicht!D7 -> 200 | G7: Event | H7: ERGO ID | I7: 2 | J7: Leadership Challenge Parcours (45 min)
B8: Tagungsraum 60 qm (Max. 30 Personen) | C8: =Übersicht!G8 -> 350 | D8: =Übersicht!D8 -> 300 | F8: x | G8: Workshop | H8: ERGO sAD | I8: 3 | J8: Campus Olympiade (60 min)
B9: Tagungsraum 100 qm (Max. 50 Personen) | C9: =Übersicht!G9 -> 800 | D9: =Übersicht!D9 -> 750 | G9: Offsite | H9: Extern | I9: 4 | J9: Weihnachtsrallye (90 min)
B10: Zusätzlicher Gruppenarbeits- raum (30 qm für 12 Personen) | C10: 250 | G10: Content | I10: 5
B11: Content-Raum (incl. Nutzung Technik) Preis pro Tag (Max. 10 Personen) | C11: 500 | G11: Andere
B12: Content-Raum (incl. Nutzung Technik) Preis pro Stunde (Max. 10 Personen) | C12: 100
B13: Getränkepauschale Heißgetränke & Softgetränke | C13: =Übersicht!H7 -> 15.9 | D13: =Übersicht!E7 -> 15.9
B14: Großes Frühstück (Incl. Anlieferung pauschal 50,-- ) | D14: =Übersicht!H16 -> 15.8
B15: Mittagessen (Incl. Anlieferung, Auf- u. Abbau pauschal 100,--) | D15: =Übersicht!H17 -> 24.3
B16: Snacks (Kuchen) Ab 14:30 Uhr (Nur in Kombination mit Mittagessen) | D16: =Übersicht!H18 -> 4.5
B17: Kleines Frühstück (Belegte Brötchen) (Plus Anlieferung pauschal 50,--) | D17: =Übersicht!H23 -> 5.9
B18: Geschirrservice | D18: =Übersicht!H19 -> 5.9
B19: Übernachtung mit Frühstück im b´mine-Hotel (Bitte über MICE selbst buchen) | D19: =Übersicht!H20 -> 105
B20: Übernachtung mit Frühstück & Abendessen im b´mine-Hotel (Bitte über MICE selbst buchen) | D20: =Übersicht!H21 -> 150
B21: Flipchart | D21: =Übersicht!H22 -> 10
B22: Team-Events Infos auf Campus Homepage (Kostenfrei zur Raumbuchung) | D22: Kostenfrei
B24: Aktuell ist das Sheet "Input Buchungstool" mit dem Sheet "Übersicht" verlinkt. Wenn das Buchungstool verschickt werden soll, nur die zwei Tabs zum Buchungstool drinlassen und hier Hard-Copy Zahlen einfügen. Diese müssten dann manuell geändert werden.

Sheet Input Raummiete (hidden)
B3: ERGO - Akademie Campus Belegung - Raummiete
B5: Parameter | C5: Input | D5: Beschreibung
B6: Jahresmiete Gesamt (€) (fiktiv) | C6: 300000 | D6: Fiktive Jahresmiete für die gesamte Bürofläche in €
B7: ERGO Gourmet Betreuungspauschale | D7: Pauschale pro Tag: 204 € an 248 Werktagen für 2025
B8: Lieferkosten (2x am Tag) | D8: 150 € am Tag für 2 Lieferungen
B9: Jahresmiete (inkl. Fixkosten, (€)) | C9: =C6+C7+C8 -> 300000 | D9: Fiktive Gesamtmiete + ERGO Gourmet Pauschale
B10: Gesamtfläche (qm) | C10: 2018 | D10: Gesamtbürofläche in qm
B11: Tage Gesamt verfügbar | C11: 248 | D11: Verfügbare Werktage 2025 (Abzüglich Feiertagen und Wochenenden)
B12: Leerstandsquote (%) der verfügbaren Tage | C12: 0.7848888889 | D12: 0.5
B13: Auslastung, der von der Akademie nicht genutzen Räume | C13: 0.3
B15: Raumübersicht
B16: Gruppenräume - Raumname | C16: Fläche (in qm) | D16: Raumkategorie
B17: Athen (Olympia) | C17: 33.59 | D17: Klein (ca. 33 qm)
B18: London (Olympia) | C18: 32.96 | D18: Klein (ca. 33 qm)
B19: Paris (Olympia) | C19: 36.42 | D19: Klein (ca. 33 qm)
B20: Olympia | C20: =C17+C18+C19 -> 102.97 | D20: Groß (ca. 100 qm)
B21: Maracana | C21: =32.73+31.23 -> 63.96 | D21: Mittel (ca. 60 qm)
B22: Hawaii | C22: 33.25 | D22: Klein (ca. 33 qm)
B23: Wimbledon | C23: 32.37 | D23: Klein (ca. 33 qm)
B24: Los Angeles | C24: 32.92 | D24: Klein (ca. 33 qm)
B25: Kalifornien | C25: 32.96 | D25: Klein (ca. 33 qm) | E25: Räume gerundet
B26: Summe | C26: =SUM(C17:C19,C21:C25) -> 298.43 | D26: Klein (ca. 33 qm) | E26: 33
D27: Mittel (ca. 60 qm) | E27: 60
D28: Groß (ca. 100 qm) | E28: 100
B30: Szenarien
B32: Raumgröße | C32: Szenario 1: Gesamtfläche | D32: Szenario 2. Raumfläche (300 qm) | E32: Szenario 3.1 (78% Leerstandsquote der 300 qm) | F32: Szenario 3.2 (50% Leerstandsquote ) | G32: Szenario 4.1: 78% Leerstand + 30% Auslastung der freien Räume | H32: Szenario 4.2: 50% Leerstand + 30% Auslastung der freien Räume | I32: Szenario 5: Mietzahlungen der Akademie (300 qm); Auslastung (100-78%=) 22%+30% | J32: Vergleich Markt (Durchschnittswerte) | K32: Empfehlung Ganztags | L32: Empfehlung Halbtags
B33: Erklärung | C33: - Der Gesamtmietpreis inklusive Fixkosten wird auf die gesamte Quadratmeterfläche verteilt (2.018 qm) - Die Kosten pro Quadratmeter werden anhand der jeweiligen Raumgröße multipliziert - Keine Differenzierung zwischen genutzten und ungenutzten Flächen | D33: - Der Gesamtmietpreis wird nur auf die vermietbare Fläche der Meetingräume (300 qm) umgelegt - Diese 300 qm setzen sich aus der Summe der Meetingräume zusammen - Die Mietkosten pro Raum werden auf Basis der 248 Werktage berechnet, um eine tägliche Raumkostenberechnung zu ermöglichen | E33: - Aufbauend auf Szenario 2 wird berücksichtigt, dass die Akademie einen Teil der Räume selbst nutzt - 22 % der Fläche sind bereits durch interne Schulungen der Akademie belegt, wodurch nur 78 % der Fläche (Leerstandsquote) zur Vermietung an Externe zur Verfügung stehen - Die Mietkosten werden nur auf die ungenutzte Fläche umgelegt und basieren auf den 248 Werktagen - Diese Berechnung ermöglicht ein realistischeres Bild für externe Mietpreise | F33: - Aufbauend auf Szenario 3.1 wird angenommen, dass die Akademie nur 50 % der Räume nutzt, sodass die restlichen 50 % zur Vermietung bereitstehen - Die Mietkosten werden auf die verbleibende ungenutzte Fläche (50 %) verteilt - Die Berechnung basiert weiterhin auf den 248 Werktagen | G33: - Aufbauend auf Szenario 3.1 wird zusätzlich angenommen, dass nicht alle zur Vermietung stehenden Räume gebucht werden - Es wird von einer tatsächlichen Auslastung von 30 % der freien Räume ausgegangen (innerhalb der 78 % Leerstandsfläche) - Die Mietkosten werden entsprechend nur auf diese 30 % vermietete Fläche umgelegt | H33: - Aufbauend auf Szenario 3.2 wird angenommen, dass nur 30 % der zur Vermietung stehenden Räume tatsächlich genutzt werden - Die Mietkosten werden auf diese 30 % vermietete Fläche umgelegt, basierend auf der 50 % Leerstandsquote | I33: - Es wird davon ausgegangen, dass die Akademie für die von ihr genutzten Räume Miete zahlt - 22 % der Fläche sind durch die Akademie belegt und bringen Miete ein - Zusätzlich wird eine 30%ige Auslastung der freien Räume durch externe Vermietung angenommen, sodass insgesamt 52 % der Fläche genutzt werden - Die Gesamtmietkosten (+ Fixkosten) werden auf Basis dieser 52 % Gesamtauslastung verteilt | J33: - Es wurden Durchschnitte von in der Größe und Funktionalität vergleichbaren Räumen am Markt genommen | K33: - Basierend auf Marktrecherche und den Erfahrungswerten von Deloitte wurde eine Empfehlung entwickelt, die auch die Ergebnisse der Szenarien berücksichtigt
B34: Klein | C34: =$C$9/$C$10*E26/$C$11 -> 19.78164264 | D34: =$C$9/$C$26*E26/$C$11 -> 133.7645506 | E34: =($C$9/$C$26*E26)/($C$12*$C$11) -> 170.4248238 | F34: =($C$9/$C$26*E26)/($D$12*$C$11) -> 267.5291012 | G34: =($C$9/$C$26*E26)/($C$12*$C$11*$C$13) -> 568.0827461 | H34: =($C$9/$C$26*E26)/($D$12*$C$11*$C$13) -> 891.7636707 | I34: =($C$9/$C$26*E26)/(((1-$C$12)+$C$13)*$C$11) -> 259.6809654 | J34: ='Input Marktdaten'!F15 -> 226.1428571 | K34: 200 | L34: 200 | M34: ggf. wegen Standardabweichung zu reduzieren; -> 200 EUR/ Ganztagestag
B35: Mittel | C35: =$C$9/$C$10*E27/$C$11 -> 35.96662297 | D35: =$C$9/$C$26*E27/$C$11 -> 243.2082738 | E35: =($C$9/$C$26*E27)/($C$12*$C$11) -> 309.863316 | F35: =($C$9/$C$26*E27)/($D$12*$C$11) -> 486.4165477 | G35: =($C$9/$C$26*E27)/($C$12*$C$11*$C$13) -> 1032.87772 | H35: =($C$9/$C$26*E27)/($D$12*$C$11*$C$13) -> 1621.388492 | I35: =($C$9/$C$26*E27)/(((1-$C$12)+$C$13)*$C$11) -> 472.1472098 | J35: ='Input Marktdaten'!F25 -> 353.75 | K35: 300 | L35: 300
B36: Groß | C36: =$C$9/$C$10*E28/$C$11 -> 59.94437162 | D36: =$C$9/$C$26*E28/$C$11 -> 405.3471231 | E36: =($C$9/$C$26*E28)/($C$12*$C$11) -> 516.4388601 | F36: =($C$9/$C$26*E28)/($D$12*$C$11) -> 810.6942461 | G36: =($C$9/$C$26*E28)/($C$12*$C$11*$C$13) -> 1721.462867 | H36: =($C$9/$C$26*E28)/($D$12*$C$11*$C$13) -> 2702.314154 | I36: =($C$9/$C$26*E28)/(((1-$C$12)+$C$13)*$C$11) -> 786.9120163 | J36: ='Input Marktdaten'!F35 -> 763.625 | K36: 750 | L36: 750
B37: Content-Raum | C37: =$C$9/$C$10*E29/$C$11 -> 0 | D37: =$C$9/$C$26*E29/$C$11 -> 0 | E37: =($C$9/$C$26*E29)/($C$12*$C$11) -> 0 | F37: =($C$9/$C$26*E29)/($D$12*$C$11) -> 0 | G37: =($C$9/$C$26*E29)/($C$12*$C$11*$C$13) -> 0 | H37: =($C$9/$C$26*E29)/($D$12*$C$11*$C$13) -> 0 | I37: =($C$9/$C$26*E29)/(((1-$C$12)+$C$13)*$C$11) -> 0 | J37: ='Input Marktdaten'!F36 -> 0 | K37: 500 | L37: 500

Sheet Input Marktdaten (hidden)
B3: ERGO - Akademie Campus Belegung - Weitere Themen
B6: Marktvergleich
B7: Klein | C7: Anbieter | D7: Raumname | E7: Kapazität | F7: Preis pro Tag (8 Stunden) | G7: Technik | H7: Getränke | I7: Mahlzeiten | J7: Quelle
B8: Frankfurt | C8: Space Base | D8: Meeting Raum | E8: 10 Personen | F8: 150 | G8: Nein | H8: Nein | I8: Nein | J8: https://www.spacebase.com/en/venue/meeting-konferenzraum-1052597/
B9: Stuttgart | C9: NCA Studios | D9: CREATIVE SPACE | E9: 20 Personen | F9: 250 | G9: Ja | H9: Nein | I9: Nein | J9: NCA Studios CREATIVE SPACE in Stuttgart direkt buchen bei Event Inc
B10: Düsseldorf | C10: Regus | D10: Meetingraum | E10: 10 Personen | F10: 448 | G10: Nein | H10: Nein | I10: Nein | J10: Regus Meeting Rooms
B11: Stuttgart | C11: Kultur und Kongress Zentrum | D11: Seminarraum Stuttgart | E11: 10 Personen | F11: =7.5*8 -> 60 | G11: Nein | H11: Nein | I11: Nein | J11: https://www.eventinc.de/rooms/stuttgart/das-k-kultur-und-kongresszentrum-seminarraum
B12: Düsseldorf | C12: Alte Fabrik | D12: Meetingpoint - Loft 1 | E12: 10 personen | F12: 275 | G12: Ja | H12: Nein | I12: Nein | J12: Meetingpoint Alte Fabrik Meeting-Loft 1 in Mettmann direkt buchen bei Event Inc
B13: Düsseldorf | C13: Rheinisches Bildungsinstitut | D13: Meetingraum | E13: 10 Personen | F13: 160 | G13: Nein | H13: Nein | I13: Nein | J13: https://www.spacebase.com/de/venue/rheinisches-bildungsinstit-5658/
B14: Düsseldorf | C14: FiDUS Business Solutions GmbH | D14: Meetingraum | E14: 10 Personen | F14: 240 | G14: Nein | H14: Nein | I14: Nein | J14: FiDUS Business Solutions GmbH Cromford 36qm mieten in Ratingen / Düsseldorf
E15: Durchschnitt Kosten | F15: =AVERAGE(F8:F14) -> 226.1428571
B16: Mittel
B17: Düsseldorf | C17: Campus Fichrenhain 63 | D17: Konferenzraum | E17: 18 Personen | F17: 250 | G17: Ja | H17: Nein | I17: Nein | J17: Campus Fichtenhain 63 Konferenzraum mieten in Krefeld
B18: Düsseldorf Neuss | C18: SleevesUp | D18: Meetingraum | E18: 25 Personen | F18: 450 | G18: Nein | H18: Nein | I18: Nein | J18: SleevesUp! Neuss Eastside Meetingraum mieten in Neuss
B19: Düsseldorf | C19: Volkmann Akademie | D19: Tagungsraum | E19: 20 Personen | F19: 300 | G19: Nein | H19: Nein | I19: Nein | J19: Volkmann Akademie Workshop- und Tagungsraum 1 mieten in Düsseldorf
B20: Düsseldorf | C20: Design Offices Kaiserteich | D20: Training Room | E20: 25 Personen | F20: 750 | G20: Ja | H20: Nein | I20: Nein | J20: Design Offices Düsseldorf Kaiserteich Training Room II mieten in Düsseldorf
B21: Düsseldorf | C21: Room for K | D21: Meetingraum | E21: 30 Personen | F21: 350 | G21: Ja | H21: Nein | I21: Nein | J21: Room for K Meetingraum mieten in Düsseldorf
B22: Düsseldorf | C22: Verve | D22: Tagunsraum Seide | E22: 25 Personen | F22: 350 | G22: Nein | H22: Nein | I22: Nein | J22: Verve Tagungsraum Seide mieten in Krefeld
B23: Düsseldorf | C23: Ebinghaus Seminarraum | D23: Seminarraum Pdentia | E23: 20 Personen | F23: 190 | G23: Nein | H23: Nein | I23: Nein | J23: Ebinghaus Seminarraumvermietung Seminarraum Pudentia mieten in Düsseldorf
B24: Düsseldorf | C24: IT-Schule KIBERone | D24: Großer Konferenzraum | E24: 20 Personen | F24: 190 | G24: Ja | H24: Nein | I24: Nein | J24: IT-Schule KIBERone Konferenz- und Meetingräume Großer Konferenzraum mieten in Düsseldorf
E25: Durchschnitt Kosten | F25: =AVERAGE(F17:F24) -> 353.75
B26: Groß
B27: Düsseldorf | C27: STARTPLATZ | D27: Design Thinking Raum | E27: 40 Personen | F27: 650 | G27: Nein | H27: Nein | I27: Nein | J27: https://www.spacebase.com/de/venue/design-thinking-raum-san-d-92115/?guest_number=50%2C100&venue_type=meeting-room
B28: Düsseldorf | C28: FiDUS Business Solutions GmbH | D28: Raum 100qm | E28: 40 Personen | F28: 580 | G28: Nein | H28: Nein | I28: Nein | J28: FiDUS Business Solutions GmbH Peter und Paul 100qm mieten in Ratingen / Düsseldorf
B29: Krefeld | C29: Lern & Denker | D29: werkStadt | E29: 40 Personen | F29: 1500 | G29: Nein | H29: Nein | I29: Nein | J29: Rent LERN & DENKER werkStadt Krefeld | Spacebase
B30: Düsseldorf | C30: Medienhafen | D30: Seminarraum | E30: 40 Personen | F30: 699 | G30: Nein | H30: Nein | I30: Nein | J30: Rent Medienhafen.Office Seminarraum 1-30 Personen Düsseldorf | Spacebase
B31: Düsseldorf | C31: STARTPLATZ | D31: Meeting Raum | E31: 40 Personen | F31: 750 | G31: Nein | H31: Nein | I31: Nein | J31: Rent STARTPLATZ Düsseldorf Panama Düsseldorf | Spacebase
B32: Köln | C32: Seekabelhaus | D32: Meetingraum | E32: 40 Personen | F32: 800 | G32: Ja | H32: Nein | I32: Nein | J32: Rent Seekabelhaus Seekabelhaus Cologne | Spacebase
B33: Köln | C33: Hinterhofsalon | D33: Meeting Raum | E33: 60 Personen | F33: 380 | G33: Ja | H33: Nein | I33: Nein | J33: Rent HINTERHOFSALON HINTERHOFSALON Cologne | Spacebase
B34: Köln | C34: Studio A | D34: Stage | E34: 40 Personen | F34: 750 | G34: Ja | H34: Nein | I34: Nein | J34: Rent STUDIO A STAGE Cologne | Spacebase
E35: Durchschnitt Kosten | F35: =AVERAGE(F27:F34) -> 763.625

Sheet Input Conferencing Services (hidden)
B3: ERGO - Akademie Campus Belegung - Conferencing Services
B5: Positionen und Kosten ERGO Campus | G5: Vergleichsangebote Preise pro Person
B6: Einzelpositionen | C6: ERGO Gourmet Kosten p.P. | D6: Marge | E6: Preis | F6: Angenommener Preis | G6: Spacebase - Meetingraum | H6: Regus Düsseldorf | I6: Meetingpoint Alte Fabrik Düsseldrof | J6: FiDUs Business Solutions Meetingraum | K6: Campus Fichtenhain - Konferenz-raum | L6: STARTPLATZ Design Thinking Raum | M6: Volkmann Akademie | N6: Design Offices Düsseldorf Kaiserteich | O6: Room for K Meetingraum | P6: Tagunsraum Verve Seide | Q6: Seminarraum Pudentia | R6: Lern & Denker werkStadt | S6: STARTPLATZ Meeting Raum | T6: Hinterhof-salon Meetingraum | U6: Studio A Stage Meeting Raum | V6: ERGO Preis | W6: Durchschnitt Markt-vergleich
B7: Frühstück | C7: =11.6+C15 -> 15.8 | D7: 0 | E7: =C7*(1+D7) -> 15.8 | F7: =ROUND(E7,1) -> 15.8 | G7: 6.5 | H7: 15 | K7: 6 | L7: 12.5 | N7: 15.5 | O7: 8 | Q7: 5.4 | R7: 18 | S7: 12.5 | U7: =177.5/50 -> 3.55 | V7: =F7 -> 15.8 | W7: =AVERAGE(G7:U7) -> 10.295 | X7: =V7/W7-1 -> 0.5347255949
B8: Heißgetränke (ganzer Tag) | C8: 8.1 | D8: 0 | E8: 8.1 | F8: 8.1 | G8: 6 | H8: 8.5 | I8: 5 | J8: 20 | K8: 6 | M8: 5 | R8: 6 | T8: 5 | U8: 15 | V8: =F8 -> 8.1 | W8: =AVERAGE(G8:U8) -> 8.5 | X8: =V8/W8-1 -> -0.04705882353
B9: Kaltgetränke (Fancy) | C9: 7.8 | D9: 0 | E9: 7.8 | F9: 7.8 | G9: 5 | I9: 8.9 | J9: 15 | M9: 5 | O9: 2 | P9: 29 | R9: 29 | T9: 5 | V9: 7.8 | W9: 12.3625 | X9: -0.3690596562
B10: Kaltgetränke (Standard) | C10: 5.1 | D10: 0 | E10: 5.1 | F10: 5.1 | G10: 3 | K10: 12 | L10: 6 | P10: 15 | R10: 16 | S10: 6.25 | V10: 5.1 | W10: 9.708333333 | X10: -0.4746781116
B11: Getränkepauschale (ganzer Tag) | C11: =C8+C9 -> 15.9 | D11: 0 | E11: 15.9 | F11: 15.9 | M11: 9 | N11: 25 | O11: 10 | Q11: 10 | S11: 23 | V11: 15.9 | W11: =AVERAGE(G11:U11) -> 15.4 | X11: 0.03246753247
B12: Getränkepauschale (halber Tag) | C12: 15.9 | D12: 0 | E12: 15.9 | F12: 15.9 | V12: 15.9
B13: Mittagessen | C13: =18.4+C16 -> 24.3 | D13: 0 | E13: =C13*(1+D13) -> 24.3 | F13: =ROUND(E13,1) -> 24.3 | G13: 24 | H13: 27 | K13: 12 | L13: 22 | M13: 20.6 | N13: 43.5 | O13: 20 | P13: 30 | R13: 28 | S13: 21.9 | T13: 18.9 | U13: 30 | V13: 24.3 | W13: 24.825 | X13: -0.02114803625
B14: Snacks (Kuchen) | C14: 4.5 | D14: 0 | E14: =C14*(1+D14) -> 4.5 | F14: =ROUND(E14,1) -> 4.5 | G14: 12 | I14: 5.5 | K14: 5 | L14: 12.5 | M14: 9.4 | N14: 11.5 | O14: 6 | R14: 16 | S14: 12.4 | U14: =272/50 -> 5.44 | V14: 4.5 | W14: 9.574 | X14: -0.5299770211
B15: Geschirrservice (Breakfast) | C15: 4.2
B16: Geschirrservice (all day) | C16: 5.9 | D16: 0 | E16: 5.9 | F16: 5.9 | V16: 5.9
B17: Lieferung pro Tag | C17: 100 | D17: 0 | E17: 100 | F17: 100 | V17: 100
B18: Lieferung einmalig | C18: 50
B19: Abendessen | C19: 54 | D19: 0 | E19: 54 | F19: 45 | G19: 26 | N19: 43.5 | V19: 45 | W19: 34.75 | X19: 0.2949640288
B20: Tagungsmedien | C20: 15 | D20: 0 | E20: 15 | F20: 15 | V20: 15
B21: Übernachtung | C21: 105 | D21: 0 | E21: 105 | F21: 105 | V21: 105
B22: Flipchart | C22: 10 | D22: 0 | E22: 10 | F22: =ROUND(E22,1) -> 10 | V22: 10
B23: Kleines Frühstück (Belegte Brötchen) | C23: 5.9 | D23: 0 | E23: =C23*(1+D23) -> 5.9 | F23: =ROUND(E23,1) -> 5.9
G24: https://www.spacebase.com/en/venue/meeting-konferenzraum-1052597/ | H24: Regus Meeting Rooms | I24: Meetingpoint Alte Fabrik Meeting-Loft 1 in Mettmann direkt buchen bei Event Inc | J24: FiDUS Business Solutions GmbH Cromford 36qm mieten in Ratingen / Düsseldorf | K24: Campus Fichtenhain 63 Konferenzraum mieten in Krefeld | L24: STARTPLATZ Düsseldorf Design Thinking-Raum San Diego mieten in Düsseldorf | M24: Volkmann Akademie Workshop- und Tagungsraum 1 mieten in Düsseldorf | N24: Design Offices Düsseldorf Kaiserteich Training Room II mieten in Düsseldorf | O24: Room for K Meetingraum mieten in Düsseldorf | P24: Verve Tagungsraum Seide mieten in Krefeld | Q24: Ebinghaus Seminarraumvermietung Seminarraum Pudentia mieten in Düsseldorf | R24: Rent LERN & DENKER werkStadt Krefeld | Spacebase | S24: Rent STARTPLATZ Düsseldorf Panama Düsseldorf | Spacebase | T24: Rent HINTERHOFSALON HINTERHOFSALON Cologne | Spacebase | U24: Rent STUDIO A STAGE Cologne | Spacebase

Sheet Input Zusatzangebote (hidden)
B3: ERGO - Akademie Campus Belegung - Zusatzangebote
B5: Zusatzangebote
B6: On Campus
B7: Aktivität | C7: Kategorie | D7: Preis | E7: Ungefährer Zeitrahmen
B8: Abendveranstaltung | C8: Networking & Austausch | D8: Abhängig von Organisation | E8: 2-3 Stunden
B9: Meet your CEO/Boss | C9: Networking & Austausch | D9: Abhängig von Organisation | E9: 1 Stunde
B10: Coffee & Connect Session | C10: Networking & Austausch | D10: Kostenlos | E10: 30 Minuten
B11: Brettspielabend | C11: Networking & Austausch | D11: Kostenlos oder ab 5 Euro | E11: 2 Stunden
B12: Show-Cooking | C12: Kreatives | D12: Ab 25 Euro pro Person | E12: 1-2 Stunden
B13: Kreativ-Workshop (z. B. Malen, Basteln) | C13: Kreatives | D13: Ab 15 Euro pro Person | E13: 1,5-2 Stunden
B14: Teamchallenges (z.B. zum Thema Nachhaltigkeit) | C14: Kreatives | D14: Kostenlos | E14: Variabel
B15: Teambuilding-Quiz | C15: Wellbeing & Teambuilding | D15: Kostenlos | E15: 1 Stunde
B16: Sportliche Mini-Challenges (z. B. Team-Staffel) | C16: Wellbeing & Teambuilding | D16: Kostenlos oder ab 10 Euro | E16: 1-1,5 Stunden
B17: Yoga-Session | C17: Wellbeing & Teambuilding | D17: Ab 10 Euro pro Person | E17: 45 Minuten
B21: Off Campus
B22: Aktivität | C22: Kategorie | D22: Preis | E22: Ungefährer Zeitrahmen
B23: Kulinarische Stadtführung | C23: Kulturelle und Stadtführungen | D23: ab 44 Euro pro Person | E23: 2,5 Stunden
B24: Segway-Tour Stadtführung | C24: Kulturelle und Stadtführungen | D24: ab 70 Euro pro Person | E24: 2 Stunden
B25: E-Scooter Stadtführung | C25: Kulturelle und Stadtführungen | D25: ab 59 Euro pro Person | E25: 2 Stunden
B26: Geführte Tour mit einem Nachtwächter Düsseldorf | C26: Kulturelle und Stadtführungen | D26: ab 20 Euro pro Person | E26: 1,5 Stunden
B27: Walking Tour in "Little Tokyo" | C27: Kulturelle und Stadtführungen | D27: ab 9 Euro | E27: 1,5 Stunden
B28: Medienhafen Tour | C28: Kulturelle und Stadtführungen | D28: ab 20 Euro pro Person | E28: 2 Stunden
B29: Bootstour am Rhein | C29: Erlebnis- und Freizeitaktivitäten | D29: ab 25 Euro pro Person | E29: 2 Stunden
B30: Brauerei-Tour mit Altbierverkostung | C30: Erlebnis- und Freizeitaktivitäten | D30: ab 27,5 Euro pro Person | E30: 2 Stunden
B31: PubCrawl durch die Altstadt | C31: Erlebnis- und Freizeitaktivitäten | D31: ab 22 Euro pro Person | E31: 4 Stunden
B32: Fahrradverleih | C32: Interaktive und aktive Touren | D32: Preis variabel | E32: Zeitrahmen variabel
B33: Entdecke Düsseldorf per Schnitzeljagd | C33: Interaktive und aktive Touren | D33: ab 39,90 Euro pro Person | E33: 3,5 Stunden

Sheet Raumplan (hidden)

Sheet Belegungsplan (hidden)
A2: Datum | B2: T | C2: KW | D2: Olympia Athen ca. 13 Pax | E2: Olympia London ca. 13 Pax | F2: Olympia Paris ca. 13 Pax | G2: Maracana Nicht teilbar ca. 40 Pax | H2: IT-Raum 1 ca. 20 Pax | I2: Hawaii | J2: Wimledon | K2: Los Angeles | L2: Kalifornien | M2: Oberstdorf | N2: Gruppenraum G 2 | O2: Gruppenraum G 3 | P2: Gruppenraum G 4 | Q2: Bemerkungen
E3: Kann zu einem großen Raum werden ca. 40 Pax | I3: 10 Personen | J3: 10 Personen | K3: 10 Personen | L3: 10 Personen | M3: Gruppenraum
A4: 2025-01-01 | B4: Mi | C4: 1
A5: 2025-01-02 | B5: Do | C5: 1
A6: 2025-01-03 | B6: Fr | C6: 1
A7: 2025-01-04 | B7: Sa
A8: 2025-01-05 | B8: So
A9: 2025-01-06 | B9: Mo | C9: 2
A10: 2025-01-07 | B10: Di | C10: 2
A11: 2025-01-08 | B11: Mi | C11: 2
A12: 2025-01-09 | B12: Do | C12: 2
A13: 2025-01-10 | B13: Fr | C13: 2
A14: 2025-01-11 | B14: Sa
A15: 2025-01-12 | B15: So
A16: 2025-01-13 | B16: Mo | C16: 3
A17: 2025-01-14 | B17: Di | C17: 3
A18: 2025-01-15 | B18: Mi | C18: 3
A19: 2025-01-16 | B19: Do | C19: 3
A20: 2025-01-17 | B20: Fr | C20: 3
A21: 2025-01-18 | B21: Sa
A22: 2025-01-19 | B22: So
A23: 2025-01-20 | B23: Mo | C23: 4
A24: 2025-01-21 | B24: Di | C24: 4
A25: 2025-01-22 | B25: Mi | C25: 4
A26: 2025-01-23 | B26: Do | C26: 4
A27: 2025-01-24 | B27: Fr | C27: 4
A28: 2025-01-25 | B28: Sa
A29: 2025-01-26 | B29: So
A30: 2025-01-27 | B30: Mo | C30: 5
A31: 2025-01-28 | B31: Di | C31: 5
A32: 2025-01-29 | B32: Mi | C32: 5
A33: 2025-01-30 | B33: Do | C33: 5
A34: 2025-01-31 | B34: Fr | C34: 5
A35: 2025-02-01 | B35: Sa
A36: 2025-02-02 | B36: So
A37: 2025-02-03 | B37: Mo | C37: 6
A38: 2025-02-04 | B38: Di | C38: 6
A39: 2025-02-05 | B39: Mi | C39: 6
A40: 2025-02-06 | B40: Do | C40: 6
A41: 2025-02-07 | B41: Fr | C41: 6
A42: 2025-02-08 | B42: Sa
A43: 2025-02-09 | B43: So
A44: 2025-02-10 | B44: Mo | C44: 7
A45: 2025-02-11 | B45: Di | C45: 7
A46: 2025-02-12 | B46: Mi | C46: 7
A47: 2025-02-13 | B47: Do | C47: 7
A48: 2025-02-14 | B48: Fr | C48: 7
A49: 2025-02-15 | B49: Sa
A50: 2025-02-16 | B50: So
A51: 2025-02-17 | B51: Mo | C51: 8
A52: 2025-02-18 | B52: Di | C52: 8
A53: 2025-02-19 | B53: Mi | C53: 8
A54: 2025-02-20 | B54: Do | C54: 8 | D54: Bereichstagung Akademie | E54: Bereichstagung Akademie | F54: Bereichstagung Akademie | G54: Bereichstagung Akademie | H54: Bereichstagung Akademie | I54: Bereichstagung Akademie | J54: Bereichstagung Akademie | K54: Bereichstagung Akademie | L54: Bereichstagung Akademie | M54: Bereichstagung Akademie | N54: Bereichstagung Akademie | O54: Bereichstagung Akademie | P54: Bereichstagung Akademie | Q54: Bereichstagung Akademie
A55: 2025-02-21 | B55: Fr | C55: 8 | D55: Einweihung Campus | E55: Einweihung Campus | F55: Einweihung Campus | G55: Einweihung Campus | H55: Einweihung Campus | I55: Einweihung Campus | J55: Einweihung Campus | K55: Einweihung Campus | L55: Einweihung Campus | M55: Einweihung Campus | N55: Einweihung Campus | O55: Einweihung Campus | P55: Einweihung Campus | Q55: Einweihung Campus
A56: 2025-02-22 | B56: Sa
A57: 2025-02-23 | B57: So
A58: 2025-02-24 | B58: Mo | C58: 9 | D58: Beginn 100 Tageplan | E58: Beginn 100 Tageplan | F58: Beginn 100 Tageplan | G58: Beginn 100 Tageplan | H58: Beginn 100 Tageplan | I58: Beginn 100 Tageplan | J58: Beginn 100 Tageplan | K58: Beginn 100 Tageplan | L58: Beginn 100 Tageplan
A59: 2025-02-25 | B59: Di | C59: 9 | D59: Trainerqualifikation "Methodik & Didaktik im Campus" Gruppenübergreifend | I59: Trainerqualifikation "Methodik & Didaktik im Campus" Gruppenübergreifend | J59: Trainerqualifikation "Methodik & Didaktik im Campus" Gruppenübergreifend | M59: Trainerqualifikation "Methodik & Didaktik im Campus" Gruppenübergreifend | N59: Trainerqualifikation "Methodik & Didaktik im Campus" Gruppenübergreifend | O59: Trainerqualifikation "Methodik & Didaktik im Campus" Gruppenübergreifend | P59: Trainerqualifikation "Methodik & Didaktik im Campus" Gruppenübergreifend
A60: 2025-02-26 | B60: Mi | C60: 9 | D60: Trainerqualifikation "Methodik & Didaktik im Campus" Gruppenübergreifend | I60: Trainerqualifikation "Methodik & Didaktik im Campus" Gruppenübergreifend | J60: Trainerqualifikation "Methodik & Didaktik im Campus" Gruppenübergreifend | M60: Trainerqualifikation "Methodik & Didaktik im Campus" Gruppenübergreifend | N60: Trainerqualifikation "Methodik & Didaktik im Campus" Gruppenübergreifend | O60: Trainerqualifikation "Methodik & Didaktik im Campus" Gruppenübergreifend | P60: Trainerqualifikation "Methodik & Didaktik im Campus" Gruppenübergreifend
A61: 2025-02-27 | B61: Do | C61: 9 | D61: Trainerqualifikation "Methodik & Didaktik im Campus" Gruppenübergreifend | I61: Trainerqualifikation "Methodik & Didaktik im Campus" Gruppenübergreifend | J61: Trainerqualifikation "Methodik & Didaktik im Campus" Gruppenübergreifend | M61: Trainerqualifikation "Methodik & Didaktik im Campus" Gruppenübergreifend | N61: Trainerqualifikation "Methodik & Didaktik im Campus" Gruppenübergreifend | O61: Trainerqualifikation "Methodik & Didaktik im Campus" Gruppenübergreifend | P61: Trainerqualifikation "Methodik & Didaktik im Campus" Gruppenübergreifend
A62: 2025-02-28 | B62: Fr | C62: 9
A63: 2025-03-01 | B63: Sa
A64: 2025-03-02 | B64: So
A65: 2025-03-03 | B65: Mo | C65: 10
A66: 2025-03-04 | B66: Di | C66: 10 | D66: Erfolgreich im Vertrieb mit persolog 1 (Bundesweit) | M66: Erfolgreich im Vertrieb mit persolog 1 Bundesweit
A67: 2025-03-05 | B67: Mi | C67: 10 | D67: Erfolgreich im Vertrieb mit persolog 1 (Bundesweit) | M67: Erfolgreich im Vertrieb mit persolog 1 Bundesweit
A68: 2025-03-06 | B68: Do | C68: 10
A69: 2025-03-07 | B69: Fr | C69: 10
A70: 2025-03-08 | B70: Sa
A71: 2025-03-09 | B71: So
A72: 2025-03-10 | B72: Mo | C72: 11
A73: 2025-03-11 | B73: Di | C73: 11 | D73: Generationenberatung 1 VDW | I73: Generationenberatung 1 VDW | J73: Firmenkunde Vermögensschaden VDW | K73: Generationenberatung 1 VDW/Gruppenraum | M73: Firmenkunde Vermögensschaden VDW/Gruppenraum | N73: Generationenberatung 1 VDW/Gruppenraum
A74: 2025-03-12 | B74: Mi | C74: 11 | D74: Generationenberatung 1 VDW | I74: Generationenberatung 1 VDW | J74: Firmenkunde Vermögensschaden VDW | K74: Generationenberatung 1 VDW/Gruppenraum | M74: Firmenkunde Vermögensschaden VDW/Gruppenraum | N74: Generationenberatung 1 VDW/Gruppenraum
A75: 2025-03-13 | B75: Do | C75: 11
A76: 2025-03-14 | B76: Fr | C76: 11
A77: 2025-03-15 | B77: Sa
A78: 2025-03-16 | B78: So
A79: 2025-03-17 | B79: Mo | C79: 12
A80: 2025-03-18 | B80: Di | C80: 12 | D80: Von der Vision zur Wirklichkeit Bundesweit) | G80: Firmenkunde Cyber-Versicherung VDW | I80: Vorsorgeaspekte für jede Lebensphase 1 VDW | J80: Firmenkunde Cyber-Versicherung (Gruppenraum) VDW | K80: Vorsorgeaspekte für jede Lebensphase 1 VDW/Gruppenraum | M80: Von der Vision zur Wirklichkeit Bundesweit) Gruppenraum | N80: Firmenkunde Cyber-Versicherung (Gruppenraum) VDW | O80: Vorsorgeaspekte für jede Lebensphase 1 VDW/Gruppenraum
A81: 2025-03-19 | B81: Mi | C81: 12 | D81: Von der Vision zur Wirklichkeit Bundesweit) | G81: Wertpapierberatung Aufbauwissen | H81: Firmenkunde Cyber-Versicherung VDW | I81: Vorsorgeaspekte für jede Lebensphase 1 VDW | J81: Firmenkunde Cyber-Versicherung (Gruppenraum) VDW | K81: Vorsorgeaspekte für jede Lebensphase 1 VDW/Gruppenraum | L81: Wertpapierberatung Aufbauwissen | M81: Von der Vision zur Wirklichkeit Bundesweit) Gruppenraum | N81: Firmenkunde Cyber-Versicherung (Gruppenraum) VDW | O81: Vorsorgeaspekte für jede Lebensphase 1 VDW/Gruppenraum | P81: Wertpapierberatung Aufbauwissen
A82: 2025-03-20 | B82: Do | C82: 12 | D82: Von der Vision zur Wirklichkeit Bundesweit) | G82: Wertpapierberatung Aufbauwissen | L82: Wertpapierberatung Aufbauwissen | M82: Von der Vision zur Wirklichkeit Bundesweit) Gruppenraum | P82: Wertpapierberatung Aufbauwissen
A83: 2025-03-21 | B83: Fr | C83: 12
A84: 2025-03-22 | B84: Sa
A85: 2025-03-23 | B85: So
A86: 2025-03-24 | B86: Mo | C86: 13
A87: 2025-03-25 | B87: Di | C87: 13 | D87: Teammeeting VAA2HH & VAA3D | I87: Teammeeting VAA2HH & VAA3D | J87: Teammeeting VAA2HH & VAA3D
A88: 2025-03-26 | B88: Mi | C88: 13 | D88: Teammeeting VAA2HH & VAA3D | I88: Teammeeting VAA2HH & VAA3D | J88: Teammeeting VAA2HH & VAA3D
A89: 2025-03-27 | B89: Do | C89: 13 | D89: Teammeeting VAA2HH & VAA3D | I89: Teammeeting VAA2HH & VAA3D | J89: Teammeeting VAA2HH & VAA3D
A90: 2025-03-28 | B90: Fr | C90: 13
A91: 2025-03-29 | B91: Sa
A92: 2025-03-30 | B92: So
A93: 2025-03-31 | B93: Mo | C93: 14 | D93: Wertpapierberatung Abschlussseminar 09.24 | G93: Wertpapierberatung Abschlussseminar 10.24 | K93: Wertpapierberatung Abschlussseminar 10.24 | L93: Wertpapierberatung Abschlussseminar 09.24 | P93: Wertpapierberatung Abschlussseminar 09.24
A94: 2025-04-01 | B94: Di | C94: 14 | D94: Wertpapierberatung Abschlussseminar 09.24 | G94: Wertpapierberatung Abschlussseminar 10.24 | H94: Kompetenter Führen VDW (Gruppenraum) | I94: KV Ergänzungsversicherung VDW mind. 80 qm, Stuhlkreis, Tische am Rand, 2 FC, 3 MW + 1 GR | J94: Kompetenter Führen VDW | K94: Wertpapierberatung Abschlussseminar 10.24 | L94: Wertpapierberatung Abschlussseminar 09.24 (Gruppenraum) | M94: KV Ergänzungsversicherung VDW | N94: Kompetenter Führen VDW | P94: Wertpapierberatung Abschlussseminar 09.24
A95: 2025-04-02 | B95: Mi | C95: 14 | D95: Wertpapierberatung Abschlussseminar 09.24 | G95: Wertpapierberatung Abschlussseminar 10.24 | H95: Kompetenter Führen VDW (Gruppenraum) | I95: KV Ergänzungsversicherung VDW mind. 80 qm, Stuhlkreis, Tische am Rand, 2 FC, 3 MW + 1 GR | J95: Kompetenter Führen VDW | K95: Wertpapierberatung Abschlussseminar 10.24 | L95: Wertpapierberatung Abschlussseminar 09.24 (Gruppenraum) | M95: KV Ergänzungsversicherung VDW | N95: Kompetenter Führen VDW | P95: Wertpapierberatung Abschlussseminar 09.24
A96: 2025-04-03 | B96: Do | C96: 14 | D96: Wertpapierberatung Abschlussseminar 09.24 | G96: Wertpapierberatung Abschlussseminar 10.24 | I96: Erfolgreich aus der Box RD 809 (Gruppenraum) | J96: Erfolgreich aus der Box RD 809 | K96: Wertpapierberatung Abschlussseminar 10.24 | L96: Wertpapierberatung Abschlussseminar 09.24 (Gruppenraum) | O96: Erfolgreich aus der Box RD 809 | P96: Wertpapierberatung Abschlussseminar 09.24
A97: 2025-04-04 | B97: Fr | C97: 14 | D97: Wertpapierberatung Abschlussseminar 09.24 | G97: Wertpapierberatung Abschlussseminar 10.24 | I97: Erfolgreich aus der Box RD 809 (Gruppenraum) | J97: Erfolgreich aus der Box RD 809 | K97: Wertpapierberatung Abschlussseminar 10.24 | L97: Wertpapierberatung Abschlussseminar 09.24 (Gruppenraum) | O97: Erfolgreich aus der Box RD 809 | P97: Wertpapierberatung Abschlussseminar 09.24
A98: 2025-04-05 | B98: Sa
A99: 2025-04-06 | B99: So
A100: 2025-04-07 | B100: Mo | C100: 15
A101: 2025-04-08 | B101: Di | C101: 15 | D101: Wertpapierberatung Basisinfo 04.25 | G101: Grundlagen der Krankenvollversicherung VDW 3 MW, 2 FC + 2 GR | H101: Digitaler Experte - Homepage VDW (Gruppenraum) | I101: Digitaler Experte - Homepage VDW | J101: Erfolgreich aus der Box VDW | K101: Grundlagen der Krankenvollversicherung VDW (Gruppenraum) | L101: Wertpapierberatung Basisinfo 04.25 | M101: Digitaler Experte - Homepage VDW | N101: Erfolgreich aus der Box VDW | O101: Grundlagen der Krankenvollversicherung VDW | P101: Wertpapierberatung Basisinfo 04.25
A102: 2025-04-09 | B102: Mi | C102: 15 | D102: Wertpapierberatung Basisinfo 04.26 | G102: Grundlagen der Krankenvollversicherung VDW 3 MW, 2 FC + 2 GR | H102: Digitaler Experte - Homepage VDW (Gruppenraum) | I102: Digitaler Experte - Homepage VDW | J102: Erfolgreich aus der Box VDW | K102: Grundlagen der Krankenvollversicherung VDW (Gruppenraum) | L102: Wertpapierberatung Basisinfo 04.25 | M102: Digitaler Experte - Homepage VDW | N102: Erfolgreich aus der Box VDW | O102: Grundlagen der Krankenvollversicherung VDW | P102: Wertpapierberatung Basisinfo 04.25
A103: 2025-04-10 | B103: Do | C103: 15 | G103: Grundlagen der Krankenvollversicherung VDW 3 MW, 2 FC + 2 GR | K103: Grundlagen der Krankenvollversicherung VDW (Gruppenraum) | O103: Grundlagen der Krankenvollversicherung VDW
A104: 2025-04-11 | B104: Fr | C104: 15
A105: 2025-04-12 | B105: Sa
A106: 2025-04-13 | B106: So
A107: 2025-04-14 | B107: Mo | C107: 16
A108: 2025-04-15 | B108: Di | C108: 16 | D108: Erfolgreich wachsen im Agenturbetrieb VDW | M108: Erfolgreich wachsen im Agenturbetrieb VDW
A109: 2025-04-16 | B109: Mi | C109: 16 | D109: Erfolgreich wachsen im Agenturbetrieb VDW | M109: Erfolgreich wachsen im Agenturbetrieb VDW
A110: 2025-04-17 | B110: Do | C110: 16
A111: 2025-04-18 | B111: Fr | C111: 16 | D111: Karfreitag | E111: Karfreitag | F111: Karfreitag | G111: Karfreitag | H111: Karfreitag | I111: Karfreitag | J111: Karfreitag | K111: Karfreitag | L111: Karfreitag | M111: Karfreitag | N111: Karfreitag | O111: Karfreitag | P111: Karfreitag | Q111: Karfreitag
A112: 2025-04-19 | B112: Sa
A113: 2025-04-20 | B113: So
A114: 2025-04-21 | B114: Mo | C114: 17 | D114: Ostermontag | E114: Ostermontag | F114: Ostermontag | G114: Ostermontag | H114: Ostermontag | I114: Ostermontag | J114: Ostermontag | K114: Ostermontag | L114: Ostermontag | M114: Ostermontag | N114: Ostermontag | O114: Ostermontag | P114: Ostermontag | Q114: Ostermontag
A115: 2025-04-22 | B115: Di | C115: 17
A116: 2025-04-23 | B116: Mi | C116: 17
A117: 2025-04-24 | B117: Do | C117: 17
A118: 2025-04-25 | B118: Fr | C118: 17
A119: 2025-04-26 | B119: Sa
A120: 2025-04-27 | B120: So
A121: 2025-04-28 | B121: Mo | C121: 18
A122: 2025-04-29 | B122: Di | C122: 18
A123: 2025-04-30 | B123: Mi | C123: 18
A124: 2025-05-01 | B124: Do | C124: 18
A125: 2025-05-02 | B125: Fr | C125: 18
A126: 2025-05-03 | B126: Sa
A127: 2025-05-04 | B127: So
A128: 2025-05-05 | B128: Mo | C128: 19 | D128: Wertpapierberatung Abschlussseminar 01.24 (IHK first) Gruppe 1 | G128: Wertpapierberatung Abschlussseminar 01.24 (IHK first) Gruppe 2 | H128: Wertpapierberatung Abschlussseminar 01.24 (IHK first) Gruppe 2
A129: 2025-05-06 | B129: Di | C129: 19 | D129: Wertpapierberatung Abschlussseminar 01.24 (IHK first) Gruppe 1 | G129: Wertpapierberatung Abschlussseminar 01.24 (IHK first) Gruppe 2 | H129: Wertpapierberatung Abschlussseminar 01.24 (IHK first) Gruppe 2 | I129: Firmenkunde Einrichtung und Liquidität VDW | J129: Generationenberatung 2 VDW | K129: Vorsorgeaspekte für jede Lebensphase 1 VDW | L129: Erfolgreich im Vertrieb mit persolog 2 Bundesweit | M129: Erfolgreich im Vertrieb mit persolog 2 Bundesweit | N129: Vorsorgeaspekte für jede Lebensphase 1 VDW | O129: Generationenberatung 2 VDW | P129: Wertpapierberatung Abschlussseminar 01.24 (IHK first) Gruppe 1
A130: 2025-05-07 | B130: Mi | C130: 19 | D130: Wertpapierberatung Abschlussseminar 01.24 (IHK first) Gruppe 1 | G130: Wertpapierberatung Abschlussseminar 01.24 (IHK first) Gruppe 2 | H130: Wertpapierberatung Abschlussseminar 01.24 (IHK first) Gruppe 2 | I130: Firmenkunde Einrichtung und Liquidität VDW | J130: Generationenberatung 2 VDW | K130: Vorsorgeaspekte für jede Lebensphase 1 VDW | L130: Erfolgreich im Vertrieb mit persolog 2 Bundesweit | M130: Erfolgreich im Vertrieb mit persolog 2 Bundesweit | N130: Vorsorgeaspekte für jede Lebensphase 1 VDW | O130: Generationenberatung 2 VDW | P130: Wertpapierberatung Abschlussseminar 01.24 (IHK first) Gruppe 1
A131: 2025-05-08 | B131: Do | C131: 19 | D131: Wertpapierberatung Abschlussseminar 01.24 (IHK first) Gruppe 1 | G131: Wertpapierberatung Abschlussseminar 01.24 (IHK first) Gruppe 2 | H131: Wertpapierberatung Abschlussseminar 01.24 (IHK first) Gruppe 2 | P131: Wertpapierberatung Abschlussseminar 01.24 (IHK first) Gruppe 1
A132: 2025-05-09 | B132: Fr | C132: 19 | D132: Wertpapierberatung Abschlussseminar 01.24 (IHK first) Gruppe 1 | G132: Wertpapierberatung Abschlussseminar 01.24 (IHK first) Gruppe 2 | H132: Wertpapierberatung Abschlussseminar 01.24 (IHK first) Gruppe 2 | P132: Wertpapierberatung Abschlussseminar 01.24 (IHK first) Gruppe 1
A133: 2025-05-10 | B133: Sa
A134: 2025-05-11 | B134: So
A135: 2025-05-12 | B135: Mo | C135: 20
A136: 2025-05-13 | B136: Di | C136: 20 | G136: Vorsorgeaspekte für jede Lebensphase 2 VDW | M136: Vorsorgeaspekte für jede Lebensphase 2 VDW
A137: 2025-05-14 | B137: Mi | C137: 20 | G137: Vorsorgeaspekte für jede Lebensphase 2 VDW | M137: Vorsorgeaspekte für jede Lebensphase 2 VDW
A138: 2025-05-15 | B138: Do | C138: 20
A139: 2025-05-16 | B139: Fr | C139: 20
A140: 2025-05-17 | B140: Sa
A141: 2025-05-18 | B141: So
A142: 2025-05-19 | B142: Mo | C142: 21
A143: 2025-05-20 | B143: Di | C143: 21
A144: 2025-05-21 | B144: Mi | C144: 21 | D144: Wertpapierberatung Aufbauwissen | M144: Wertpapierberatung Aufbauwissen
A145: 2025-05-22 | B145: Do | C145: 21 | D145: Wertpapierberatung Aufbauwissen | M145: Wertpapierberatung Aufbauwissen
A146: 2025-05-23 | B146: Fr | C146: 21
A147: 2025-05-24 | B147: Sa
A148: 2025-05-25 | B148: So
A149: 2025-05-26 | B149: Mo | C149: 22
A150: 2025-05-27 | B150: Di | C150: 22
A151: 2025-05-28 | B151: Mi | C151: 22
A152: 2025-05-29 | B152: Do | C152: 22 | D152: Christi Himmelfahrt | E152: Christi Himmelfahrt | F152: Christi Himmelfahrt | G152: Christi Himmelfahrt | H152: Christi Himmelfahrt | I152: Christi Himmelfahrt | J152: Christi Himmelfahrt | K152: Christi Himmelfahrt | L152: Christi Himmelfahrt | M152: Christi Himmelfahrt | N152: Christi Himmelfahrt | O152: Christi Himmelfahrt | P152: Christi Himmelfahrt | Q152: Christi Himmelfahrt
A153: 2025-05-30 | B153: Fr | C153: 22
A154: 2025-05-31 | B154: Sa
A155: 2025-06-01 | B155: So
A156: 2025-06-02 | B156: Mo | C156: 23
A157: 2025-06-03 | B157: Di | C157: 23 | D157: Expertenqualifikation Gesundheit VDW & VDS | G157: Erfolgreiche Geschäftsidee (Trainee-Programm) | I157: Risikomanagement im Unternehmen West | J157: Erfolgreiche Geschäftsidee (Trainee-Programm) (Gruppenraum) | K157: Risikomanagement im Unternehmen West (Gruppenraum) | M157: Expertenqualifikation Gesundheit | N157: Erfolgreiche Geschäftsidee (Trainee-Programm) | O157: Risikomanagement im Unternehmen West
A158: 2025-06-04 | B158: Mi | C158: 23 | D158: Expertenqualifikation Gesundheit VDW & VDS | G158: Erfolgreiche Geschäftsidee (Trainee-Programm) | I158: Risikomanagement im Unternehmen West | J158: Erfolgreiche Geschäftsidee (Trainee-Programm) (Gruppenraum) | K158: Risikomanagement im Unternehmen West (Gruppenraum) | M158: Expertenqualifikation Gesundheit | N158: Erfolgreiche Geschäftsidee (Trainee-Programm) | O158: Risikomanagement im Unternehmen West
A159: 2025-06-05 | B159: Do | C159: 23 | D159: Expertenqualifikation Gesundheit VDW & VDS | M159: Expertenqualifikation Gesundheit
A160: 2025-06-06 | B160: Fr | C160: 23 | D160: Expertenqualifikation Gesundheit VDW & VDS | M160: Expertenqualifikation Gesundheit
A161: 2025-06-07 | B161: Sa
A162: 2025-06-08 | B162: So
A163: 2025-06-09 | B163: Mo | C163: 24 | D163: Pfingsmontag | E163: Pfingsmontag | F163: Pfingsmontag | G163: Pfingsmontag | H163: Pfingsmontag | I163: Pfingsmontag | J163: Pfingsmontag | K163: Pfingsmontag | L163: Pfingsmontag | M163: Pfingsmontag | N163: Pfingsmontag | O163: Pfingsmontag | P163: Pfingsmontag | Q163: Pfingsmontag
A164: 2025-06-10 | B164: Di | C164: 24
A165: 2025-06-11 | B165: Mi | C165: 24 | D165: Erfolgreich im Vertrieb mit persolog 1 VDN | G165: Wertpapierberatung Basisinfo 06.25 | I165: Wertpapierberatung Basisinfo 06.25 (Gruppenraum) | M165: Erfolgreich im Vertrieb mit persolog 1 VDN | N165: Wertpapierberatung Basisinfo 06.25
A166: 2025-06-12 | B166: Do | C166: 24 | D166: Erfolgreich im Vertrieb mit persolog 1 VDN | G166: Wertpapierberatung Basisinfo 06.26 | I166: Wertpapierberatung Basisinfo 06.25 (Gruppenraum) | M166: Erfolgreich im Vertrieb mit persolog 1 VDN | N166: Wertpapierberatung Basisinfo 06.26
A167: 2025-06-13 | B167: Fr | C167: 24
A168: 2025-06-14 | B168: Sa
A169: 2025-06-15 | B169: So
A170: 2025-06-16 | B170: Mo | C170: 25
A171: 2025-06-17 | B171: Di | C171: 25
A172: 2025-06-18 | B172: Mi | C172: 25
A173: 2025-06-19 | B173: Do | C173: 25 | D173: Fronleichnam | E173: Fronleichnam | F173: Fronleichnam | G173: Fronleichnam | H173: Fronleichnam | I173: Fronleichnam | J173: Fronleichnam | K173: Fronleichnam | L173: Fronleichnam | M173: Fronleichnam | N173: Fronleichnam | O173: Fronleichnam | P173: Fronleichnam | Q173: Fronleichnam
A174: 2025-06-20 | B174: Fr | C174: 25
A175: 2025-06-21 | B175: Sa
A176: 2025-06-22 | B176: So
A177: 2025-06-23 | B177: Mo | C177: 26
A178: 2025-06-24 | B178: Di | C178: 26 | D178: Vorsorgeaspekte für jede Lebensphase 2 VDW | G178: Gruppenversicherung Gesundheit VDW mind. 80 qm (Messestände), 5 MW, 2 FC + 1 GR | I178: Firmenkunde Haftung VDW | J178: Firmenkunde Haftung VDW (Gruppenraum) | K178: Gruppenversicherung Gesundheit VDW (Gruppenraum) | M178: Vorsorgeaspekte für jede Lebensphase 2 VDW | N178: Firmenkunde Haftung VDW | O178: Gruppenversicherung Gesundheit VDW
A179: 2025-06-25 | B179: Mi | C179: 26 | D179: Vorsorgeaspekte für jede Lebensphase 2 VDW | G179: Gruppenversicherung Gesundheit VDW mind. 80 qm (Messestände), 5 MW, 2 FC + 1 GR | I179: Firmenkunde Haftung VDW | J179: Firmenkunde Haftung VDW (Gruppenraum) | K179: Gruppenversicherung Gesundheit VDW (Gruppenraum) | M179: Vorsorgeaspekte für jede Lebensphase 2 VDW | N179: Firmenkunde Haftung VDW | O179: Gruppenversicherung Gesundheit VDW
A180: 2025-06-26 | B180: Do | C180: 26
A181: 2025-06-27 | B181: Fr | C181: 26
A182: 2025-06-28 | B182: Sa
A183: 2025-06-29 | B183: So
A184: 2025-06-30 | B184: Mo | C184: 27
A185: 2025-07-01 | B185: Di | C185: 27 | D185: Generationenberatung 1 VDW | M185: Generationenberatung 1 VDW
A186: 2025-07-02 | B186: Mi | C186: 27 | D186: Generationenberatung 1 VDW | M186: Generationenberatung 1 VDW
A187: 2025-07-03 | B187: Do | C187: 27
A188: 2025-07-04 | B188: Fr | C188: 27
A189: 2025-07-05 | B189: Sa
A190: 2025-07-06 | B190: So
A191: 2025-07-07 | B191: Mo | C191: 28
A192: 2025-07-08 | B192: Di | C192: 28
A193: 2025-07-09 | B193: Mi | C193: 28 | D193: Wertpapierberatung Aufbauwissen | M193: Wertpapierberatung Aufbauwissen
A194: 2025-07-10 | B194: Do | C194: 28 | D194: Wertpapierberatung Aufbauwissen | M194: Wertpapierberatung Aufbauwissen
A195: 2025-07-11 | B195: Fr | C195: 28 | Q195: Ende 100 Tageplan
A196: 2025-07-12 | B196: Sa
A197: 2025-07-13 | B197: So
A198: 2025-07-14 | B198: Mo | C198: 29 | D198: Wertpapierberatung Abschlussseminar 04.24 (IHK first) Gruppe 1 | G198: Wertpapierberatung Abschlussseminar 04.24 (IHK first) Gruppe 2 | J198: Wertpapierberatung Abschlussseminar 04.24 (IHK first) (Gruppenarbeitsraum) | K198: Wertpapierberatung Abschlussseminar 04.24 (IHK first) Gruppe 2 (Gruppenarbeitsraum) | N198: Wertpapierberatung Abschlussseminar 04.24 (IHK first) | O198: Wertpapierberatung Abschlussseminar 04.24 (IHK first) Gruppe 2
A199: 2025-07-15 | B199: Di | C199: 29 | D199: Wertpapierberatung Abschlussseminar 04.24 (IHK first) Gruppe 2 | G199: Wertpapierberatung Abschlussseminar 04.24 (IHK first) Gruppe 2 | I199: Die Marke ICH VDW | J199: Wertpapierberatung Abschlussseminar 04.24 (IHK first) (Gruppenarbeitsraum) | K199: Wertpapierberatung Abschlussseminar 04.24 (IHK first) Gruppe 2 (Gruppenarbeitsraum) | M199: Die Marke ICH VDW | N199: Wertpapierberatung Abschlussseminar 04.24 (IHK first) | O199: Wertpapierberatung Abschlussseminar 04.24 (IHK first) Gruppe 2
A200: 2025-07-16 | B200: Mi | C200: 29 | D200: Wertpapierberatung Abschlussseminar 04.24 (IHK first) Gruppe 3 | G200: Wertpapierberatung Abschlussseminar 04.24 (IHK first) Gruppe 2 | I200: Die Marke ICH VDW | J200: Wertpapierberatung Abschlussseminar 04.24 (IHK first) (Gruppenarbeitsraum) | K200: Wertpapierberatung Abschlussseminar 04.24 (IHK first) Gruppe 2 (Gruppenarbeitsraum) | M200: Die Marke ICH VDW | N200: Wertpapierberatung Abschlussseminar 04.24 (IHK first) | O200: Wertpapierberatung Abschlussseminar 04.24 (IHK first) Gruppe 2
A201: 2025-07-17 | B201: Do | C201: 29 | D201: Wertpapierberatung Abschlussseminar 04.24 (IHK first) Gruppe 4 | G201: Wertpapierberatung Abschlussseminar 04.24 (IHK first) Gruppe 2 | J201: Wertpapierberatung Abschlussseminar 04.24 (IHK first) (Gruppenarbeitsraum) | K201: Wertpapierberatung Abschlussseminar 04.24 (IHK first) Gruppe 2 (Gruppenarbeitsraum) | N201: Wertpapierberatung Abschlussseminar 04.24 (IHK first) | O201: Wertpapierberatung Abschlussseminar 04.24 (IHK first) Gruppe 2
... 173 more rows
